[Event "Early-Titled-Tuesday-Blitz-June-18-2024"]
[Site "Chess.com"]
[Date "2024.06.18"]
[Round "6"]
[White "IndianSchoolOfSuffering"]
[Black "Harry_Rakkel"]
[Result "0-1"]
[WhiteElo "2521"]
[BlackElo "2669"]
[TimeControl "180+1"]
[EndTime "9:09:04 PDT"]
[Termination "Harry_Rakkel won by checkmate"]

1. e4 {[%clk 0:03:00.9]} 1... c5 {[%clk 0:02:57.3]} 2. Nf3 {[%clk 0:03:00.4]}
2... e6 {[%clk 0:02:56.5]} 3. c3 {[%clk 0:02:58.7]} 3... Nf6 {[%clk 0:02:55]} 4.
e5 {[%clk 0:02:57.9]} 4... Nd5 {[%clk 0:02:54.7]} 5. d4 {[%clk 0:02:58.3]} 5...
cxd4 {[%clk 0:02:54.3]} 6. cxd4 {[%clk 0:02:58.5]} 6... d6 {[%clk 0:02:53.7]} 7.
Bc4 {[%clk 0:02:56.3]} 7... Bd7 {[%clk 0:02:47.5]} 8. O-O {[%clk 0:02:50.4]}
8... Bc6 {[%clk 0:02:43.1]} 9. Nc3 {[%clk 0:02:49.9]} 9... Nb6 {[%clk
0:02:33.9]} 10. Bd3 {[%clk 0:02:43.6]} 10... N8d7 {[%clk 0:02:29.1]} 11. exd6
{[%clk 0:02:42.4]} 11... Bxd6 {[%clk 0:02:27.3]} 12. Re1 {[%clk 0:02:38.5]}
12... Qc7 {[%clk 0:02:17.9]} 13. Nb5 {[%clk 0:02:35.7]} 13... Bxb5 {[%clk
0:02:16]} 14. Bxb5 {[%clk 0:02:35.8]} 14... O-O {[%clk 0:02:15.3]} 15. Be3
{[%clk 0:02:32.9]} 15... Rac8 {[%clk 0:02:13.8]} 16. Rc1 {[%clk 0:02:30.7]}
16... Qb8 {[%clk 0:02:13.5]} 17. Qd3 {[%clk 0:02:11.5]} 17... Rxc1 {[%clk
0:02:07]} 18. Rxc1 {[%clk 0:02:10.6]} 18... Rc8 {[%clk 0:02:07.5]} 19. Rc2
{[%clk 0:02:05.3]} 19... Nf6 {[%clk 0:02:03.7]} 20. Qd1 {[%clk 0:01:59]} 20...
Nbd5 {[%clk 0:02:00.2]} 21. Bg5 {[%clk 0:01:43.2]} 21... Ne4 {[%clk 0:01:17.8]}
22. Bh4 {[%clk 0:01:39]} 22... Bf4 {[%clk 0:00:53.1]} 23. Bd3 {[%clk 0:01:30.8]}
23... Nd6 {[%clk 0:00:44.3]} 24. a3 {[%clk 0:01:25.3]} 24... g6 {[%clk
0:00:40.1]} 25. Bg3 {[%clk 0:01:23.8]} 25... Rxc2 {[%clk 0:00:34.9]} 26. Qxc2
{[%clk 0:01:20.5]} 26... Qd8 {[%clk 0:00:29.4]} 27. Be4 {[%clk 0:01:14.5]} 27...
Bxg3 {[%clk 0:00:28]} 28. hxg3 {[%clk 0:01:15.4]} 28... Nf6 {[%clk 0:00:27.4]}
29. Bd3 {[%clk 0:01:13.5]} 29... Qb6 {[%clk 0:00:26.6]} 30. b4 {[%clk
0:01:05.3]} 30... Qd8 {[%clk 0:00:22.3]} 31. Qc5 {[%clk 0:01:04.9]} 31... b6
{[%clk 0:00:22.1]} 32. Qc6 {[%clk 0:01:04.2]} 32... Ng4 {[%clk 0:00:17.3]} 33.
d5 {[%clk 0:00:59.5]} 33... e5 {[%clk 0:00:15.7]} 34. Nd2 {[%clk 0:00:48.8]}
34... f5 {[%clk 0:00:14]} 35. Nc4 {[%clk 0:00:47]} 35... Nf7 {[%clk 0:00:09.3]}
36. d6 {[%clk 0:00:45.8]} 36... e4 {[%clk 0:00:09]} 37. Be2 {[%clk 0:00:45.7]}
37... Nf6 {[%clk 0:00:08.4]} 38. b5 {[%clk 0:00:43.1]} 38... Kg7 {[%clk
0:00:08.2]} 39. Bd1 {[%clk 0:00:42.3]} 39... Qd7 {[%clk 0:00:07.4]} 40. Bb3
{[%clk 0:00:39.7]} 40... Qe6 {[%clk 0:00:05.3]} 41. Nd2 {[%clk 0:00:37.9]} 41...
Qxd6 {[%clk 0:00:04.8]} 42. Bxf7 {[%clk 0:00:38]} 42... Qxd2 {[%clk 0:00:02.6]}
43. Bc4 {[%clk 0:00:38]} 43... Qe1+ {[%clk 0:00:02.3]} 44. Bf1 {[%clk
0:00:38.2]} 44... Ng4 {[%clk 0:00:02.9]} 45. Qc7+ {[%clk 0:00:38.4]} 45... Kh6
{[%clk 0:00:03.2]} 46. Qf4+ {[%clk 0:00:39]} 46... Kh5 {[%clk 0:00:03.7]} 47. f3
{[%clk 0:00:39.2]} 47... Qf2+ {[%clk 0:00:03.8]} 48. Kh1 {[%clk 0:00:39.2]}
48... Qxf1# {[%clk 0:00:04.7]} 0-1

[Event "Early-Titled-Tuesday-Blitz-June-18-2024"]
[Site "Chess.com"]
[Date "2024.06.18"]
[Round "6"]
[White "SkinnyPuppy8"]
[Black "Mikozovna"]
[Result "0-1"]
[WhiteElo "2198"]
[BlackElo "2628"]
[TimeControl "180+1"]
[EndTime "9:09:06 PDT"]
[Termination "Mikozovna won on time"]

1. e4 {[%clk 0:02:59.7]} 1... d6 {[%clk 0:03:00.1]} 2. d4 {[%clk 0:02:59.8]}
2... g6 {[%clk 0:03:00.5]} 3. c3 {[%clk 0:02:58]} 3... c6 {[%clk 0:02:58.7]} 4.
Bd3 {[%clk 0:02:57.5]} 4... Nf6 {[%clk 0:02:57.7]} 5. Qe2 {[%clk 0:02:56.2]}
5... Bg7 {[%clk 0:02:51.9]} 6. f4 {[%clk 0:02:54.9]} 6... e5 {[%clk 0:02:40.3]}
7. Nf3 {[%clk 0:02:53.6]} 7... Bg4 {[%clk 0:02:36.4]} 8. Be3 {[%clk 0:02:47]}
8... O-O {[%clk 0:02:35.6]} 9. Nbd2 {[%clk 0:02:45.5]} 9... Re8 {[%clk 0:02:34]}
10. dxe5 {[%clk 0:02:39.5]} 10... dxe5 {[%clk 0:02:33.3]} 11. f5 {[%clk
0:02:24.3]} 11... gxf5 {[%clk 0:02:24.3]} 12. h3 {[%clk 0:02:19.1]} 12... Bxf3
{[%clk 0:02:23.2]} 13. gxf3 {[%clk 0:02:14.9]} 13... f4 {[%clk 0:02:22.2]} 14.
Bf2 {[%clk 0:02:11.5]} 14... Nbd7 {[%clk 0:02:21.6]} 15. Rg1 {[%clk 0:02:01.3]}
15... Kh8 {[%clk 0:02:21.1]} 16. Bh4 {[%clk 0:01:56.1]} 16... Qa5 {[%clk
0:02:08.2]} 17. O-O-O {[%clk 0:01:40.8]} 17... Qxa2 {[%clk 0:02:02.9]} 18. Bc4
{[%clk 0:01:38]} 18... Qa1+ {[%clk 0:01:59]} 19. Kc2 {[%clk 0:01:36.9]} 19...
Qa4+ {[%clk 0:01:58.6]} 20. Bb3 {[%clk 0:01:36.9]} 20... Qb5 {[%clk 0:01:56.3]}
21. Bc4 {[%clk 0:01:31.9]} 21... Qc5 {[%clk 0:01:42.8]} 22. Qg2 {[%clk
0:01:20.2]} 22... Qf8 {[%clk 0:01:42.1]} 23. Qg5 {[%clk 0:01:07.3]} 23... Nc5
{[%clk 0:01:38.6]} 24. Qf5 {[%clk 0:01:02.7]} 24... Ncd7 {[%clk 0:01:26.1]} 25.
Nf1 {[%clk 0:00:54.4]} 25... b5 {[%clk 0:01:21.5]} 26. Bb3 {[%clk 0:00:45.9]}
26... Rad8 {[%clk 0:01:16.9]} 27. Rxg7 {[%clk 0:00:33]} 27... Qxg7 {[%clk
0:01:08]} 28. Rxd7 {[%clk 0:00:22.5]} 28... Nxd7 {[%clk 0:01:05.5]} 29. Bxd8
{[%clk 0:00:18.3]} 29... Rxd8 {[%clk 0:01:06.4]} 30. Nd2 {[%clk 0:00:15.8]}
30... Qf6 {[%clk 0:01:05.8]} 31. Qg4 {[%clk 0:00:14.8]} 31... Nc5 {[%clk
0:01:05]} 32. Ba2 {[%clk 0:00:09.3]} 32... Rg8 {[%clk 0:01:00.7]} 33. Qh5 {[%clk
0:00:07.7]} 33... Rg5 {[%clk 0:00:59.8]} 34. Qxf7 {[%clk 0:00:06.5]} 34... Qxf7
{[%clk 0:01:00]} 35. Bxf7 {[%clk 0:00:07.4]} 35... Rg3 {[%clk 0:01:00.1]} 36. h4
{[%clk 0:00:07.2]} 36... Kg7 {[%clk 0:00:58.4]} 37. Be8 {[%clk 0:00:04]} 37...
Rh3 {[%clk 0:00:55.7]} 38. Bxc6 {[%clk 0:00:03.8]} 38... Rxh4 {[%clk 0:00:54.8]}
39. b4 {[%clk 0:00:04]} 39... Ne6 {[%clk 0:00:53.5]} 40. Bxb5 {[%clk 0:00:04.4]}
40... Rh2 {[%clk 0:00:53.2]} 41. c4 {[%clk 0:00:03.2]} 41... Nd4+ {[%clk
0:00:52.2]} 42. Kd3 {[%clk 0:00:03.5]} 42... Nxb5 {[%clk 0:00:52.3]} 43. cxb5
{[%clk 0:00:03.8]} 43... h5 {[%clk 0:00:52.7]} 44. Nc4 {[%clk 0:00:04.2]} 44...
h4 {[%clk 0:00:52.1]} 45. Nxe5 {[%clk 0:00:03.6]} 45... h3 {[%clk 0:00:52.3]}
46. Ng4 {[%clk 0:00:04.1]} 46... Rg2 {[%clk 0:00:51.7]} 0-1

[Event "Early-Titled-Tuesday-Blitz-June-18-2024"]
[Site "Chess.com"]
[Date "2024.06.18"]
[Round "6"]
[White "Savagelittlemole"]
[Black "kyuotbi"]
[Result "1-0"]
[WhiteElo "2500"]
[BlackElo "2319"]
[TimeControl "180+1"]
[EndTime "9:09:08 PDT"]
[Termination "Savagelittlemole won by resignation"]

1. d4 {[%clk 0:03:00.9]} 1... d5 {[%clk 0:02:57.2]} 2. Bf4 {[%clk 0:02:59.8]}
2... c5 {[%clk 0:02:53.9]} 3. Nf3 {[%clk 0:02:59.1]} 3... Nc6 {[%clk 0:02:53.2]}
4. e3 {[%clk 0:02:58.1]} 4... cxd4 {[%clk 0:02:50.8]} 5. exd4 {[%clk 0:02:57.3]}
5... a6 {[%clk 0:02:50.6]} 6. c3 {[%clk 0:02:55.9]} 6... Bg4 {[%clk 0:02:46.5]}
7. Nbd2 {[%clk 0:02:51.5]} 7... Nf6 {[%clk 0:02:43]} 8. h3 {[%clk 0:02:51.3]}
8... Bh5 {[%clk 0:02:39.9]} 9. Qb3 {[%clk 0:02:50.6]} 9... b5 {[%clk 0:02:29]}
10. a4 {[%clk 0:02:43.2]} 10... Qa5 {[%clk 0:02:14.4]} 11. Bd3 {[%clk
0:02:23.6]} 11... b4 {[%clk 0:02:10.6]} 12. O-O {[%clk 0:02:19.7]} 12... e6
{[%clk 0:02:08.1]} 13. c4 {[%clk 0:02:17.6]} 13... dxc4 {[%clk 0:01:56.2]} 14.
Qxc4 {[%clk 0:01:46]} 14... Qd5 {[%clk 0:01:48.2]} 15. Rac1 {[%clk 0:01:23.1]}
15... Na5 {[%clk 0:01:43.5]} 16. Qc7 {[%clk 0:01:14]} 16... Be7 {[%clk
0:01:41.9]} 17. Nc4 {[%clk 0:00:43.4]} 17... Bd8 {[%clk 0:01:05.8]} 18. Qe5
{[%clk 0:00:36.3]} 18... Bxf3 {[%clk 0:01:01]} 19. Nxa5 {[%clk 0:00:28.8]} 19...
Bxa5 {[%clk 0:00:57.9]} 20. gxf3 {[%clk 0:00:24.8]} 20... O-O {[%clk 0:00:39.9]}
21. Rc5 {[%clk 0:00:21.5]} 21... Qxf3 {[%clk 0:00:34.1]} 22. Be2 {[%clk
0:00:16.2]} 22... Qxh3 {[%clk 0:00:27.3]} 23. Rxa5 {[%clk 0:00:16.1]} 23... Rfd8
{[%clk 0:00:23.5]} 24. Bg3 {[%clk 0:00:13.5]} 24... Nd5 {[%clk 0:00:20.5]} 25.
Qh5 {[%clk 0:00:11.7]} 25... Qxh5 {[%clk 0:00:18.5]} 26. Bxh5 {[%clk 0:00:12.6]}
26... Rdc8 {[%clk 0:00:17]} 27. Bf3 {[%clk 0:00:12.1]} 27... Rc4 {[%clk
0:00:15]} 28. Bxd5 {[%clk 0:00:11.5]} 28... exd5 {[%clk 0:00:15.6]} 29. Rxd5
{[%clk 0:00:12.1]} 29... Rc2 {[%clk 0:00:16.2]} 30. Rb1 {[%clk 0:00:11]} 30...
a5 {[%clk 0:00:14.2]} 31. Rb5 {[%clk 0:00:10.3]} 31... Rd2 {[%clk 0:00:13.9]}
32. d5 {[%clk 0:00:10.2]} 32... f6 {[%clk 0:00:14]} 33. Bc7 {[%clk 0:00:10.3]}
33... Kf7 {[%clk 0:00:12.3]} 34. Bxa5 {[%clk 0:00:10.1]} 34... b3 {[%clk
0:00:10.2]} 35. Bxd2 {[%clk 0:00:09.9]} 1-0

[Event "Early-Titled-Tuesday-Blitz-June-18-2024"]
[Site "Chess.com"]
[Date "2024.06.18"]
[Round "6"]
[White "NailBashirli"]
[Black "whiteglovethief"]
[Result "1-0"]
[WhiteElo "2745"]
[BlackElo "2545"]
[TimeControl "180+1"]
[EndTime "9:09:11 PDT"]
[Termination "NailBashirli won by resignation"]

1. e4 {[%clk 0:03:00.9]} 1... e6 {[%clk 0:03:00.1]} 2. d4 {[%clk 0:02:53.9]}
2... d5 {[%clk 0:03:01]} 3. Nd2 {[%clk 0:02:54.3]} 3... c5 {[%clk 0:03:00.6]} 4.
exd5 {[%clk 0:02:50.6]} 4... exd5 {[%clk 0:03:01.5]} 5. Ngf3 {[%clk 0:02:49.6]}
5... Nc6 {[%clk 0:03:02.4]} 6. Bb5 {[%clk 0:02:46.7]} 6... Qe7+ {[%clk
0:03:02.4]} 7. Be2 {[%clk 0:02:43]} 7... Nf6 {[%clk 0:02:59.9]} 8. O-O {[%clk
0:02:42.3]} 8... Qc7 {[%clk 0:02:59.6]} 9. Re1 {[%clk 0:02:40.9]} 9... cxd4
{[%clk 0:02:59.4]} 10. Nb3 {[%clk 0:02:32.3]} 10... Bb4 {[%clk 0:02:55.7]} 11.
Bd2 {[%clk 0:02:27.4]} 11... Bxd2 {[%clk 0:02:52]} 12. Qxd2 {[%clk 0:02:24.6]}
12... O-O {[%clk 0:02:49.4]} 13. Bd3 {[%clk 0:02:21]} 13... h6 {[%clk
0:02:43.2]} 14. Nbxd4 {[%clk 0:02:15.6]} 14... Bg4 {[%clk 0:02:41.7]} 15. c3
{[%clk 0:02:01.5]} 15... Rad8 {[%clk 0:02:36.9]} 16. Nxc6 {[%clk 0:01:53.5]}
16... bxc6 {[%clk 0:02:34.7]} 17. Ne5 {[%clk 0:01:52.9]} 17... Rfe8 {[%clk
0:02:30.5]} 18. Qf4 {[%clk 0:01:43.7]} 18... Bc8 {[%clk 0:02:30.1]} 19. Ng6
{[%clk 0:01:14.4]} 19... Qb6 {[%clk 0:02:10.4]} 20. Ne7+ {[%clk 0:01:11.5]}
20... Kf8 {[%clk 0:02:10.6]} 21. Nxc8 {[%clk 0:01:07.7]} 21... Rxc8 {[%clk
0:02:11.5]} 22. b4 {[%clk 0:01:06.5]} 22... Qc7 {[%clk 0:02:06.7]} 23. Rxe8+
{[%clk 0:01:03.7]} 23... Nxe8 {[%clk 0:02:04.8]} 24. Qd4 {[%clk 0:01:02.1]}
24... Qe7 {[%clk 0:01:52.2]} 25. Kf1 {[%clk 0:00:59.7]} 25... Nd6 {[%clk
0:01:41.8]} 26. Re1 {[%clk 0:00:58]} 26... Qc7 {[%clk 0:01:42.1]} 27. Qc5 {[%clk
0:00:44]} 27... Re8 {[%clk 0:01:41.4]} 28. Rxe8+ {[%clk 0:00:40.3]} 28... Kxe8
{[%clk 0:01:42.3]} 29. b5 {[%clk 0:00:39.3]} 29... Nb7 {[%clk 0:01:33.3]} 30.
Qxa7 {[%clk 0:00:28.4]} 30... cxb5 {[%clk 0:01:32.1]} 31. Bxb5+ {[%clk
0:00:27.5]} 31... Kd8 {[%clk 0:01:22.8]} 32. Ba6 {[%clk 0:00:25.6]} 32... Nc5
{[%clk 0:01:01.8]} 33. Qa8+ {[%clk 0:00:21.8]} 33... Ke7 {[%clk 0:01:00.9]} 34.
Bb5 {[%clk 0:00:20.8]} 34... Ne6 {[%clk 0:00:56.5]} 35. Qxd5 {[%clk 0:00:19.3]}
35... Qxc3 {[%clk 0:00:55.5]} 36. g3 {[%clk 0:00:18.6]} 36... Nc7 {[%clk
0:00:39.1]} 37. Qd7+ {[%clk 0:00:17.7]} 37... Kf6 {[%clk 0:00:39.6]} 38. Qd8+
{[%clk 0:00:17.5]} 38... Kg6 {[%clk 0:00:28.2]} 39. Bd3+ {[%clk 0:00:17.1]}
39... f5 {[%clk 0:00:28.4]} 40. Qd6+ {[%clk 0:00:15.7]} 40... Kf7 {[%clk
0:00:24.9]} 41. Bxf5 {[%clk 0:00:14.7]} 41... Ne8 {[%clk 0:00:20.7]} 42. Bg6+
{[%clk 0:00:13.5]} 42... Kg8 {[%clk 0:00:18.9]} 43. Qe6+ {[%clk 0:00:14.2]} 1-0

[Event "Early-Titled-Tuesday-Blitz-June-18-2024"]
[Site "Chess.com"]
[Date "2024.06.18"]
[Round "6"]
[White "Smiechu"]
[Black "pospisku"]
[Result "0-1"]
[WhiteElo "2351"]
[BlackElo "2524"]
[TimeControl "180+1"]
[EndTime "9:09:11 PDT"]
[Termination "pospisku won by checkmate"]

1. e4 {[%clk 0:03:00.9]} 1... e5 {[%clk 0:02:51.4]} 2. Nf3 {[%clk 0:03:00.5]}
2... Nc6 {[%clk 0:02:51.9]} 3. Bb5 {[%clk 0:02:56.7]} 3... a6 {[%clk 0:02:44.8]}
4. Ba4 {[%clk 0:02:56.4]} 4... Nf6 {[%clk 0:02:44.9]} 5. Qe2 {[%clk 0:02:55.7]}
5... b5 {[%clk 0:02:41.7]} 6. Bb3 {[%clk 0:02:54.4]} 6... Bc5 {[%clk 0:02:41.2]}
7. a4 {[%clk 0:02:52.3]} 7... Rb8 {[%clk 0:02:38.1]} 8. axb5 {[%clk 0:02:52]}
8... axb5 {[%clk 0:02:39]} 9. Nc3 {[%clk 0:02:51.4]} 9... O-O {[%clk 0:02:29.7]}
10. d3 {[%clk 0:02:46.7]} 10... h6 {[%clk 0:02:15.3]} 11. Be3 {[%clk 0:02:44.7]}
11... Nd4 {[%clk 0:01:54.4]} 12. Bxd4 {[%clk 0:02:44.2]} 12... exd4 {[%clk
0:01:54.9]} 13. Nd5 {[%clk 0:02:43.5]} 13... Nxd5 {[%clk 0:01:48.1]} 14. Bxd5
{[%clk 0:02:43]} 14... c6 {[%clk 0:01:48.8]} 15. Bb3 {[%clk 0:02:41.8]} 15... d5
{[%clk 0:01:48.5]} 16. O-O {[%clk 0:02:34.2]} 16... Re8 {[%clk 0:01:44.6]} 17.
Rfe1 {[%clk 0:02:29.7]} 17... Bg4 {[%clk 0:01:39.6]} 18. Qd2 {[%clk 0:02:19.3]}
18... Bxf3 {[%clk 0:01:36]} 19. gxf3 {[%clk 0:02:19.3]} 19... Qh4 {[%clk
0:01:29.8]} 20. f4 {[%clk 0:01:58.7]} 20... Qg4+ {[%clk 0:01:19.6]} 21. Kh1
{[%clk 0:01:57.8]} 21... dxe4 {[%clk 0:01:15.4]} 22. dxe4 {[%clk 0:01:55.3]}
22... Qf3+ {[%clk 0:01:09.5]} 23. Kg1 {[%clk 0:01:55]} 23... Rxe4 {[%clk
0:01:10.1]} 24. Rxe4 {[%clk 0:01:54.6]} 24... Qxe4 {[%clk 0:01:11]} 25. Re1
{[%clk 0:01:51.9]} 25... Qg6+ {[%clk 0:01:09]} 26. Kh1 {[%clk 0:01:51.7]} 26...
Kh8 {[%clk 0:00:34.1]} 27. Qe2 {[%clk 0:01:47.3]} 27... Bd6 {[%clk 0:00:29.5]}
28. Rg1 {[%clk 0:01:40.6]} 28... Qf6 {[%clk 0:00:29.8]} 29. Qh5 {[%clk
0:01:31.2]} 29... Qxf4 {[%clk 0:00:26.7]} 30. c3 {[%clk 0:00:50]} 30... d3
{[%clk 0:00:19.6]} 31. Bd1 {[%clk 0:00:34.7]} 31... d2 {[%clk 0:00:19.3]} 32.
Qh3 {[%clk 0:00:25.4]} 32... Re8 {[%clk 0:00:18.7]} 33. Qg2 {[%clk 0:00:24.4]}
33... g6 {[%clk 0:00:16.8]} 34. Qh3 {[%clk 0:00:23.2]} 34... Re1 {[%clk
0:00:16.5]} 35. Bc2 {[%clk 0:00:18]} 35... Qxf2 {[%clk 0:00:11.2]} 36. Qxh6+
{[%clk 0:00:16.8]} 36... Kg8 {[%clk 0:00:10.9]} 37. Qg5 {[%clk 0:00:13.2]} 37...
Qxh2# {[%clk 0:00:07]} 0-1

[Event "Early-Titled-Tuesday-Blitz-June-18-2024"]
[Site "Chess.com"]
[Date "2024.06.18"]
[Round "6"]
[White "vladislavkovalev"]
[Black "only_strong_moves"]
[Result "1-0"]
[WhiteElo "2848"]
[BlackElo "2658"]
[TimeControl "180+1"]
[EndTime "9:09:14 PDT"]
[Termination "vladislavkovalev won by resignation"]

1. e4 {[%clk 0:02:58.1]} 1... e5 {[%clk 0:02:59.2]} 2. Nf3 {[%clk 0:02:58.6]}
2... Nc6 {[%clk 0:02:59.3]} 3. Bb5 {[%clk 0:02:59.1]} 3... a6 {[%clk 0:02:59.7]}
4. Ba4 {[%clk 0:02:59]} 4... Nge7 {[%clk 0:03:00.3]} 5. Nc3 {[%clk 0:02:54.7]}
5... d6 {[%clk 0:02:57.6]} 6. Bb3 {[%clk 0:02:40.9]} 6... Ng6 {[%clk 0:02:47.7]}
7. d3 {[%clk 0:02:34.4]} 7... Bg4 {[%clk 0:02:44.7]} 8. h3 {[%clk 0:02:33]} 8...
Bxf3 {[%clk 0:02:37.3]} 9. Qxf3 {[%clk 0:02:33.9]} 9... Qd7 {[%clk 0:02:37.6]}
10. Be3 {[%clk 0:02:31.5]} 10... Na5 {[%clk 0:02:31.6]} 11. Ne2 {[%clk
0:02:22.9]} 11... Nxb3 {[%clk 0:02:30.6]} 12. axb3 {[%clk 0:02:23.8]} 12... Be7
{[%clk 0:02:30.4]} 13. O-O {[%clk 0:02:16.6]} 13... O-O {[%clk 0:02:28]} 14. Ng3
{[%clk 0:02:14.9]} 14... Nh4 {[%clk 0:02:24]} 15. Qg4 {[%clk 0:02:14.9]} 15...
f5 {[%clk 0:02:24.4]} 16. exf5 {[%clk 0:02:15.3]} 16... Nxf5 {[%clk 0:02:25.3]}
17. f4 {[%clk 0:01:58.4]} 17... Rad8 {[%clk 0:02:12.4]} 18. Nxf5 {[%clk
0:01:58.2]} 18... Qxf5 {[%clk 0:02:12.7]} 19. fxe5 {[%clk 0:01:51.1]} 19... Qxg4
{[%clk 0:02:07.5]} 20. hxg4 {[%clk 0:01:52]} 20... dxe5 {[%clk 0:02:07.8]} 21.
Rf3 {[%clk 0:01:34.1]} 21... Rf6 {[%clk 0:02:04.4]} 22. Rxf6 {[%clk 0:01:16.6]}
22... gxf6 {[%clk 0:02:00.7]} 23. Kf2 {[%clk 0:01:15.6]} 23... Kf7 {[%clk
0:02:00.5]} 24. Kf3 {[%clk 0:01:15.8]} 24... Ke6 {[%clk 0:02:00.3]} 25. Rh1
{[%clk 0:01:16.4]} 25... Rh8 {[%clk 0:01:59.7]} 26. Rh6 {[%clk 0:01:08.6]} 26...
Kf7 {[%clk 0:01:58.9]} 27. Ke4 {[%clk 0:01:07.4]} 27... Bf8 {[%clk 0:01:57.8]}
28. Rh5 {[%clk 0:01:04.8]} 28... Ke6 {[%clk 0:01:56.9]} 29. Kf3 {[%clk
0:00:50.5]} 29... h6 {[%clk 0:01:47.2]} 30. g5 {[%clk 0:00:25.3]} 30... fxg5
{[%clk 0:01:45.3]} 31. Bxg5 {[%clk 0:00:26]} 31... Bg7 {[%clk 0:01:45.5]} 32.
Be3 {[%clk 0:00:24.7]} 32... Kf6 {[%clk 0:01:32.8]} 33. g4 {[%clk 0:00:18.5]}
33... Kg6 {[%clk 0:01:32]} 34. Rf5 {[%clk 0:00:14.9]} 34... Re8 {[%clk
0:01:25.4]} 35. Ke4 {[%clk 0:00:14.9]} 35... Re6 {[%clk 0:01:26.1]} 36. b4
{[%clk 0:00:12.2]} 36... b5 {[%clk 0:01:05.6]} 37. c4 {[%clk 0:00:09.5]} 37...
Rd6 {[%clk 0:00:56.7]} 38. Bc5 {[%clk 0:00:08.5]} 38... Rd7 {[%clk 0:00:54.3]}
39. b3 {[%clk 0:00:08.9]} 39... c6 {[%clk 0:00:54.1]} 40. Be3 {[%clk 0:00:06]}
40... Rd8 {[%clk 0:00:54.3]} 41. Rf1 {[%clk 0:00:05.6]} 41... Rd7 {[%clk
0:00:53.6]} 42. Ra1 {[%clk 0:00:05.5]} 42... bxc4 {[%clk 0:00:45.7]} 43. bxc4
{[%clk 0:00:06.4]} 43... Rb7 {[%clk 0:00:45.5]} 44. Rxa6 {[%clk 0:00:06.7]}
44... Rxb4 {[%clk 0:00:45.5]} 45. Rxc6+ {[%clk 0:00:07.4]} 45... Kf7 {[%clk
0:00:46.1]} 46. Bxh6 {[%clk 0:00:07.8]} 46... Bf6 {[%clk 0:00:44.1]} 47. g5
{[%clk 0:00:07.7]} 47... Bh8 {[%clk 0:00:42.9]} 48. g6+ {[%clk 0:00:08.1]} 48...
Ke7 {[%clk 0:00:42.1]} 49. g7 {[%clk 0:00:08.6]} 49... Bxg7 {[%clk 0:00:42.7]}
50. Bxg7 {[%clk 0:00:09.5]} 50... Rb3 {[%clk 0:00:43.6]} 1-0

[Event "Early-Titled-Tuesday-Blitz-June-18-2024"]
[Site "Chess.com"]
[Date "2024.06.18"]
[Round "6"]
[White "AjedrezInteligente"]
[Black "Stanbad1"]
[Result "0-1"]
[WhiteElo "2421"]
[BlackElo "2706"]
[TimeControl "180+1"]
[EndTime "9:09:14 PDT"]
[Termination "Stanbad1 won by resignation"]

1. e4 {[%clk 0:03:00.9]} 1... e6 {[%clk 0:03:00]} 2. d4 {[%clk 0:03:00.8]} 2...
d5 {[%clk 0:03:00.6]} 3. Bd3 {[%clk 0:03:01.5]} 3... c5 {[%clk 0:02:58.3]} 4.
exd5 {[%clk 0:03:01.3]} 4... exd5 {[%clk 0:02:59.2]} 5. dxc5 {[%clk 0:03:01.4]}
5... Bxc5 {[%clk 0:02:59]} 6. Nf3 {[%clk 0:03:02.3]} 6... Nc6 {[%clk 0:02:59.1]}
7. O-O {[%clk 0:03:02.7]} 7... Nge7 {[%clk 0:02:59.5]} 8. a3 {[%clk 0:02:58.7]}
8... f6 {[%clk 0:02:58.8]} 9. b4 {[%clk 0:02:59.2]} 9... Bd6 {[%clk 0:02:58.6]}
10. c4 {[%clk 0:02:56]} 10... dxc4 {[%clk 0:02:57.6]} 11. Bxc4 {[%clk
0:02:54.5]} 11... Bg4 {[%clk 0:02:58.2]} 12. h3 {[%clk 0:02:52.3]} 12... Bh5
{[%clk 0:02:57]} 13. Bb2 {[%clk 0:02:46.6]} 13... Qc7 {[%clk 0:02:56.6]} 14. Be6
{[%clk 0:02:37.5]} 14... Be5 {[%clk 0:02:44.1]} 15. Nc3 {[%clk 0:02:07.9]} 15...
Nd4 {[%clk 0:02:37.7]} 16. g4 {[%clk 0:02:06.5]} 16... Nxe6 {[%clk 0:02:33]} 17.
Nb5 {[%clk 0:01:46.7]} 17... Qb6 {[%clk 0:02:28.4]} 18. Bxe5 {[%clk 0:01:10.4]}
18... fxe5 {[%clk 0:02:21.8]} 19. Nd6+ {[%clk 0:01:06.9]} 19... Kf8 {[%clk
0:02:20.3]} 20. gxh5 {[%clk 0:01:05.1]} 20... Rd8 {[%clk 0:02:20]} 21. Nxe5
{[%clk 0:00:57.9]} 21... Rxd6 {[%clk 0:02:03.4]} 22. Qf3+ {[%clk 0:00:52]} 22...
Ke8 {[%clk 0:02:03.4]} 23. Qf7+ {[%clk 0:00:47.1]} 23... Kd8 {[%clk 0:02:03.5]}
24. Rad1 {[%clk 0:00:47.2]} 24... Nd4 {[%clk 0:01:48.1]} 25. Nc4 {[%clk
0:00:35.7]} 25... Qc6 {[%clk 0:01:34.2]} 26. Nxd6 {[%clk 0:00:30.3]} 26... Qxd6
{[%clk 0:01:35.1]} 27. Rd3 {[%clk 0:00:18.1]} 27... Nef5 {[%clk 0:01:32.5]} 28.
Rfd1 {[%clk 0:00:13.7]} 28... Rf8 {[%clk 0:01:31.2]} 29. Qc4 {[%clk 0:00:12.7]}
29... b5 {[%clk 0:01:05]} 30. Rxd4 {[%clk 0:00:12]} 30... Nxd4 {[%clk
0:01:04.9]} 31. Qxd4 {[%clk 0:00:11.7]} 31... Qxd4 {[%clk 0:01:04.6]} 32. Rxd4+
{[%clk 0:00:12.6]} 32... Kc7 {[%clk 0:01:04.7]} 33. Rd5 {[%clk 0:00:13]} 33...
a6 {[%clk 0:01:04.4]} 34. Rg5 {[%clk 0:00:13.1]} 34... Rf7 {[%clk 0:01:04.7]}
35. Kg2 {[%clk 0:00:13.2]} 35... Kd6 {[%clk 0:01:01.6]} 36. Kg3 {[%clk
0:00:13.5]} 36... Ke6 {[%clk 0:01:01.9]} 37. f4 {[%clk 0:00:14.1]} 37... Kf6
{[%clk 0:01:02.1]} 38. Kg4 {[%clk 0:00:14.5]} 38... Rc7 {[%clk 0:01:01.4]} 39.
Rc5 {[%clk 0:00:14.2]} 39... Re7 {[%clk 0:01:00.6]} 40. Rc6+ {[%clk 0:00:14.6]}
40... Re6 {[%clk 0:00:51.1]} 41. Rxe6+ {[%clk 0:00:14.8]} 41... Kxe6 {[%clk
0:00:52]} 42. Kg5 {[%clk 0:00:15.4]} 42... Kf7 {[%clk 0:00:52.4]} 43. h6 {[%clk
0:00:15]} 43... g6 {[%clk 0:00:42.2]} 44. h4 {[%clk 0:00:15.2]} 44... Ke7 {[%clk
0:00:41.5]} 45. h5 {[%clk 0:00:14.1]} 45... gxh5 {[%clk 0:00:42.4]} 46. Kxh5
{[%clk 0:00:15]} 46... Kf6 {[%clk 0:00:42.9]} 47. Kg4 {[%clk 0:00:11.7]} 47...
Kg6 {[%clk 0:00:43.2]} 48. f5+ {[%clk 0:00:11]} 48... Kxh6 {[%clk 0:00:43.6]}
49. Kf4 {[%clk 0:00:11.5]} 49... Kg7 {[%clk 0:00:43.8]} 50. Kg5 {[%clk 0:00:12]}
50... h6+ {[%clk 0:00:43.2]} 51. Kh5 {[%clk 0:00:12]} 51... Kf6 {[%clk
0:00:43.5]} 52. Kxh6 {[%clk 0:00:12.6]} 52... Kxf5 {[%clk 0:00:44.4]} 53. Kg7
{[%clk 0:00:13.5]} 53... Ke5 {[%clk 0:00:44.9]} 54. Kf7 {[%clk 0:00:13.9]} 54...
Kd5 {[%clk 0:00:45.6]} 55. Ke7 {[%clk 0:00:14.6]} 55... Kc4 {[%clk 0:00:46.3]}
56. Kd6 {[%clk 0:00:15.2]} 56... Kb3 {[%clk 0:00:46]} 0-1